Cogmind - Beta 10.1 @@@ ROGUE MODE // 2020.10.14 @ 20:17:46 Player: Ischenous Result: Destroyed by G-47 Trooper with Particle Gun Performance ------------- Evolutions (3) 1500 Regions Visited (6) 1200 Robots Destroyed (60) 300 Value Destroyed (1783) 1783 Prototype IDs (5) 100 Alien Tech Used (0) 0 Bonus (428) 428 TOTAL SCORE: 5311 Bonus ------- Follower Combat Kills 128 Aligned with FarCom 300 Cogmind --------- Core Integrity 0/700 Matter 232/300 Energy 100/100 System Corruption 23% Temperature Cool (9) Movement Core (150) Ox2 Location -7/Factory Parts ------- > --- POWER (2) -------- (None) > --- PROPULSION (3) --- (None) > --- UTILITY (6) ------ Medium Storage Unit > --- WEAPON (2) ------- (None) > --- INVENTORY (8) ---- Transport Network Coupler Relay Coupler [Sentry] (18) Peak State ------------ > --- POWER ------------ Light Angular Momentum Engine Light Angular Momentum Engine > --- PROPULSION ------- Carbon-fiber Leg Carbon-fiber Leg Carbon-fiber Leg > --- UTILITY ---------- Advanced Heat Sink Medium Storage Unit Targeting Computer Improved ECM Suite > --- WEAPON ----------- Guided Plasma Cannon Gauss Rifle > --- INVENTORY -------- Light Nuclear Core Improved Sensor Array Improved Signal Interpreter Hardlight Generator Electrolaser Beamcaster Rocket Launcher [Rating: 43] Favorites ----------- Power Light Ion Engine Engine Light Ion Engine Power Core Light Nuclear Core Propulsion Aluminum Leg Treads Advanced Treads Leg Aluminum Leg Hover Unit Gravmag System Utility Targeting Computer Device Improved ECM Suite Storage Medium Storage Unit Processor Targeting Computer Weapon Light Assault Rifle Energy Gun Medium Laser Energy Cannon Guided Plasma Cannon Ballistic Gun Light Assault Rifle Launcher Rocket Launcher Special Weapon Remote Datajack Impact Weapon Power Maul Build | -11 -10 -10 -10 -9 -8 -7 ------- Run | Scr Mat Min Exi Min Mat Fac Slots Evolved 6 | . . . . . 4 2 Power 1 | . . . . . 1 . Propulsion 1 | . . . . . 1 . Utility 4 | . . . . . 2 2 Weapon . | . . . . . . . Parts Attached 71 | 7 5 7 5 4 23 20 Power 14 | 1 1 1 . 1 5 5 Engine 9 | 1 1 1 . 1 3 2 Core 5 | . . . . . 2 3 Reactor . | . . . . . . . Propulsion 16 | 2 1 . . 2 7 4 Treads 2 | . . . . . . 2 Leg 12 | 2 1 . . 2 7 . Wheel . | . . . . . . . Hover 2 | . . . . . . 2 Flight . | . . . . . . . Utility 16 | 2 1 2 3 . 5 3 Device 9 | . 1 . 2 . 4 2 Storage 4 | 1 . 1 1 . 1 . Processor 3 | 1 . 1 . . . 1 Hackware . | . . . . . . . Protection . | . . . . . . . Artifact . | . . . . . . . Weapon 25 | 2 2 4 2 1 6 8 Energy Gun 9 | 1 2 1 . . 3 2 Energy Cannon 2 | . . . 2 . . . Ballistic Gun 11 | 1 . 2 . 1 3 4 Ballistic Cannon . | . . . . . . . Launcher 1 | . . 1 . . . . Special Weapon 1 | . . . . . . 1 Impact Weapon 1 | . . . . . . 1 Slashing Weapon . | . . . . . . . Piercing Weapon . | . . . . . . . Special Melee Weapon . | . . . . . . . Unidentified Prototypes 5 | . . . 3 . 2 . Parts Lost 36 | . 1 3 . 1 7 24 Power 8 | . . . . 1 2 5 Propulsion 9 | . . 1 . . 1 7 Utility 6 | . . . . . . 6 Weapon 13 | . 1 2 . . 4 6 Highest Loss Streak 7 | . 1 1 . 1 2 7 Average Slot Usage (%) 90 | . 99 96 84 99 98 75 Engine 10 | . 14 14 14 13 12 1 Core 2 | . . . . . 4 8 Leg 19 | . 28 24 14 27 26 6 Device 8 | . 5 3 . . 18 19 Storage 11 | . 14 14 13 14 9 7 Processor 12 | . 9 10 14 14 9 14 Energy Gun 6 | . 13 13 14 . 1 3 Energy Cannon 5 | . . . 9 14 6 . Ballistic Gun 8 | . 14 6 . 13 9 8 Launcher 2 | . . 8 4 . . . Naked Turns . | . . . . . . . Heaviest Build 43 | 10 10 17 23 24 43 33 Greatest Support 45 | 20 20 20 10 23 45 40 Greatest Overweight (x) 7 | . . 1 2 1 1 7 Average Overweight (x) . | . . . 1 . . 1 Largest Inventory Capacity 8 | 6 6 8 8 8 8 8 Average Capacity 7 | 5 6 6 7 8 8 8 Most Carried 8 | 4 6 7 8 8 8 7 Average Carried 6 | 2 4 5 7 7 7 4 Final Capacity 8 | 6 6 8 8 8 8 8 Final Carried 8 | 2 6 7 8 8 8 2 Class Distribution -------------------- 47% | Mutant 35% | Scavenger-Mutant 13% | Skirmisher 3% | Scavenger-Skirmisher Dominant Class ---------------- Mutant | -10/Materials Mutant | -10/Mines Mutant | -10/Exiles Scavenger-Mutant | -9/Mines Scavenger-Mutant | -8/Materials Skirmisher | -7/Factory Resources | -11 -10 -10 -10 -9 -8 -7 ----------- Run | Scr Mat Min Exi Min Mat Fac Matter Collected 1154 | 270 60 153 . 89 301 281 Remotely . | . . . . . . . Salvage Created 1948 | 35 241 64 . 186 930 492 Parts 107 | 4 12 11 . 7 56 17 Haulers Intercepted 1 | . . . . . . 1 Recyclers Shooed 2 | 1 1 . . . . . Parts Field Recycled . | . . . . . . . Retrieved Matter . | . . . . . . . Parts Self-Destructed . | . . . . . . . Prevented . | . . . . . . . Kills | -11 -10 -10 -10 -9 -8 -7 ------- Run | Scr Mat Min Exi Min Mat Fac Combat Hostiles Destroyed 53 | . 7 11 . 4 20 11 Melee 1 | . . . . . . 1 Guns 26 | . 7 4 . 1 7 7 Cannons 15 | . . . . 3 12 . AOE 10 | . . 7 . . . 3 Classes Destroyed 12 | 1 2 . . 1 5 3 Worker 1 | . . . . . 1 . Builder 1 | . . . . . 1 . Tunneler 2 | 2 . . . . . . Hauler 1 | . . . . . . 1 Watcher 2 | . . . . . 2 . Swarmer 24 | . 3 11 . . 4 6 Grunt 20 | . 4 . . 3 12 1 Brawler 1 | . . . . . . 1 Duelist 2 | . . . . 1 1 . Sentry 3 | . . . . . 2 1 Hunter 1 | . . . . . 1 . Programmer 2 | . . . . . . 2 Best Kill Streak 8 | 2 3 3 . 2 8 4 Combat Bots Only 6 | . 3 3 . 2 6 4 Max Kills in Single Turn 3 | 1 1 3 . 1 1 3 Gunslinging . | . . . . . . . Exploded 3 | . . 3 . . . 3 Melee 1 | . . . . . . 1 Uniques/NPCs Destroyed . | . . . . . . . Combat | -11 -10 -10 -10 -9 -8 -7 -------- Run | Scr Mat Min Exi Min Mat Fac Damage Taken 4216 | . 403 367 . 75 1098 2273 Core 955 | . 57 106 . . 81 711 Absorbed by Shields 42 | . . . . . . 42 Core Remaining (%) 73 | 100 . . . 34 85 . Volleys Fired 216 | 7 35 29 . 13 71 61 Largest 2 | 1 2 2 . 1 2 2 Hottest 120 | 50 70 60 . 120 120 88 Shots Fired 307 | 7 69 42 . 13 83 93 Gun 255 | 7 69 37 . 4 45 93 Cannon 47 | . . . . 9 38 . Launcher 5 | . . 5 . . . . Special . | . . . . . . . Kinetic 166 | . 35 23 . 4 33 71 Thermal 126 | 7 34 14 . 9 50 12 Explosive 5 | . . 5 . . . . Electromagnetic 10 | . . . . . . 10 Robot Hit Streak 35 | 6 8 5 . 8 35 14 Robot Miss Streak 6 | 1 3 5 . 1 6 3 Penetration Max 1 | . . . . . . 1 Secondary Targets 4 | . 2 . . . 2 . Max Gunslinging Chain 1 | . 1 . . . 1 . Shots Hit Robots 229 | 6 46 18 . 12 67 80 Core Hits 88 | 2 14 13 . 5 31 23 Critical Hits 4 | . . . . 1 3 . Critical Kills 1 | . . . . . 1 . Critical Parts Destroyed 3 | . . . . 1 2 . Melee Attacks 16 | . . . . . . 16 Impact 16 | . . . . . . 16 Slashing . | . . . . . . . Piercing . | . . . . . . . Sneak Attacks . | . . . . . . . Combat Hostiles . | . . . . . . . Follow-up Attacks . | . . . . . . . Damage Inflicted 5441 | 74 470 760 . 335 1903 1899 Guns 2568 | 74 470 156 . 25 559 1284 Cannons 1654 | . . . . 310 1344 . Explosions 782 | . . 604 . . . 178 Melee 437 | . . . . . . 437 Ramming . | . . . . . . . Kinetic 1718 | . 200 66 . 25 399 1028 Thermal 2622 | 74 270 90 . 310 1504 374 Explosive 604 | . . 604 . . . . Electromagnetic 60 | . . . . . . 60 Impact 437 | . . . . . . 437 Slashing . | . . . . . . . Piercing . | . . . . . . . Highest Corruption 23 | . . . . . . 23 Average Corruption 2 | . . . . . . 2 Corruption Purged . | . . . . . . . Effects 9 | . . . . . . 9 Message Errors 1 | . . . . . . 1 Matter Fused 1 | . . . . . . 1 Heat Flow Errors 1 | . . . . . . 1 Energy Discharges 1 | . . . . . . 1 Targeting Errors 5 | . . . . . . 5 Overload Shots . | . . . . . . . Overflow Damage 232 | . . 122 . . 60 50 Projectiles 60 | . . . . . 60 . Explosions 151 | . . 122 . . . 29 Melee 21 | . . . . . . 21 Knockbacks 3 | . . . . . . 3 Impact 3 | . . . . . . 3 Kinetic . | . . . . . . . Secondary . | . . . . . . . Self-Inflicted Damage 78 | . . 22 . . . 56 Shots 2 | . . 1 . . . 1 Rammed 1 | . . . . . . 1 Targets Rammed 1 | . . . . . . 1 Kicked . | . . . . . . . Crushed . | . . . . . . . Highest Temperature 347 | 40 123 60 . 332 347 213 Average Temperature 80 | 18 51 32 . 163 103 53 Received Heat Transfer 864 | . 177 9 . 42 270 366 Effects 1 | . . . . . 1 . Interference 1 | . . . . . 1 . Siege Activations . | . . . . . . . Robots Corrupted . | . . . . . . . Combat Hostiles . | . . . . . . . Parts Fried . | . . . . . . . Impact Corruptions 1 | . . . . . . 1 Robots Melted 1 | . . . . . 1 . Combat Hostiles 1 | . . . . . 1 . Parts Melted 9 | . 2 . . 3 4 . Heat Transferred 5646 | 222 636 212 . 720 3336 520 Parts Sabotaged . | . . . . . . . Parts Stolen . | . . . . . . . Parts Stripped . | . . . . . . . Power Chain Reactions 1 | . . . . . . 1 Missiles Intercepted . | . . . . . . . Alert | -11 -10 -10 -10 -9 -8 -7 ------- Run | Scr Mat Min Exi Min Mat Fac Peak Influence 362 | 10 156 130 . 131 362 111 Initial 30 | . 6 . . . . 30 Average 66 | 2 60 75 . 48 123 40 Maximum Alert Level 1 | . . . . . 1 . Low Security (%) 95 | 100 100 100 . 100 79 100 Level 1 4 | . . . . . 20 . Level 2 . | . . . . . . . Level 3 . | . . . . . . . Level 4 . | . . . . . . . Level 5 . | . . . . . . . High Security . | . . . . . . . Max Security . | . . . . . . . Squads Dispatched 7 | . . . . . 4 3 Investigation 1 | . . . . . . 1 Extermination 2 | . . . . . . 2 Reinforcement 2 | . . . . . 2 . Assault . | . . . . . . . Garrison 2 | . . . . . 2 . Intercept . | . . . . . . . Construction Impeded . | . . . . . . . Haulers Reinforced . | . . . . . . . Stealth | -11 -10 -10 -10 -9 -8 -7 --------- Run | Scr Mat Min Exi Min Mat Fac Distress Signals 3 | . . . . . 1 2 Communications Jammed . | . . . . . . . Distress Signals . | . . . . . . . Times Spotted 107 | . 10 15 . 6 49 27 Peak Tracking Total 7 | . 3 3 . 2 7 6 Tactical Retreats 19 | . . 3 . . 10 6 Traps | -11 -10 -10 -10 -9 -8 -7 ------- Run | Scr Mat Min Exi Min Mat Fac Traps Triggered 1 | . . . . . . 1 Indirectly . | . . . . . . . Trap Hack Attempts . | . . . . . . . Triggered . | . . . . . . . Disarmed . | . . . . . . . Reprogrammed 1 | . 1 . . . . . Reused 1 | . 1 . . . . . Traps Extracted . | . . . . . . . Installed . | . . . . . . . Triggered 1 | . 1 . . . . . Machines | -11 -10 -10 -10 -9 -8 -7 ---------- Run | Scr Mat Min Exi Min Mat Fac Machines Disabled 2 | . . 1 . . . 1 Max in Single Turn 1 | . . 1 . . . 1 Machines Sabotaged . | . . . . . . . Garrisons Compromised . | . . . . . . . Overloaded Fab Kills . | . . . . . . . Fab Network Shutdowns . | . . . . . . . Hacking | -11 -10 -10 -10 -9 -8 -7 --------- Run | Scr Mat Min Exi Min Mat Fac Machines Accessed 10 | . 3 . . . 3 4 Terminals 5 | . 2 . . . 1 2 Fabricators 1 | . . . . . . 1 Repair Stations 1 | . . . . . . 1 Recycling Units 2 | . 1 . . . 1 . Scanalyzers . | . . . . . . . Garrison Access 1 | . . . . . 1 . Total Hacks 24 | . 5 . . . 8 11 Successful 13 | . 5 . . . 4 4 Failed 11 | . . . . . 4 7 Catastrophic 2 | . . . . . . 2 Database Lockouts . | . . . . . . . Manual 2 | . . . 1 . 1 . Terminals 11 | . 3 . . . 3 5 Fabricators 2 | . . . . . . 2 Repair Stations 4 | . . . . . . 4 Recycling Units 3 | . 2 . . . 1 . Scanalyzers . | . . . . . . . Garrison Access 4 | . . . . . 4 . Terminal Hacks 8 | . 3 . . . 3 2 Record 1 | . 1 . . . . . Robot Schematic 1 | . . . . . . 1 Alert Level 2 | . . . . . 2 . Unreport Threat 1 | . . . . . 1 . Locate Traps 2 | . 1 . . . . 1 Reprogram Traps 1 | . 1 . . . . . Fabricator Hacks . | . . . . . . . Repair Station Hacks 2 | . . . . . . 2 Scan Component 1 | . . . . . . 1 Repair 1 | . . . . . . 1 Recycling Unit Hacks 3 | . 2 . . . 1 . Report Inventory 1 | . 1 . . . . . Retrieve Components 2 | . 1 . . . 1 . Scanalyzer . | . . . . . . . Garrison Access Hacks . | . . . . . . . Unauthorized Hacks . | . . . . . . . Terminals . | . . . . . . . Fabricators . | . . . . . . . Repair Stations . | . . . . . . . Recycling Units . | . . . . . . . Scanalyzers . | . . . . . . . Garrison Access . | . . . . . . . Data Cores Recovered . | . . . . . . . Used . | . . . . . . . Hacking Detections 6 | . 1 . . . 1 4 Full Trace Events 1 | . . . . . . 1 Feedback Events . | . . . . . . . Feedback Blocked . | . . . . . . . Robot Schematics Acquired 1 | . . . . . . 1 Robots Built . | . . . . . . . Matter . | . . . . . . . Time . | . . . . . . . Total Robot Build Rating . | . . . . . . . Part Schematics Acquired . | . . . . . . . Parts Built . | . . . . . . . Matter . | . . . . . . . Time . | . . . . . . . Total Part Build Rating . | . . . . . . . Parts Repaired 1 | . . . . . . 1 Time 38 | . . . . . . 38 Parts Recycled . | . . . . . . . Recycled Matter . | . . . . . . . Retrieved Matter . | . . . . . . . Retrieved Components 16 | . 6 . . . 10 . Parts Scanalyzed . | . . . . . . . Part Schematics Acquired . | . . . . . . . Parts Damaged . | . . . . . . . Bothacking | -11 -10 -10 -10 -9 -8 -7 ------------ Run | Scr Mat Min Exi Min Mat Fac Used RIF Installer . | . . . . . . . Robots Hacked . | . . . . . . . Non-combat . | . . . . . . . Combat . | . . . . . . . Robot Hacks Applied . | . . . . . . . Relay Couplers Released 3 | . . . . . . 3 Programmers 3 | . . . . . . 3 Robots Rewired . | . . . . . . . Allies Hacked . | . . . . . . . Hacks Repelled . | . . . . . . . Allies | -11 -10 -10 -10 -9 -8 -7 -------- Run | Scr Mat Min Exi Min Mat Fac Total Allies 5 | . . . . 5 . . Largest Group 5 | . . . . 5 5 . Highest-Rated Group 86 | . . . . 86 86 . Highest-Rated Ally 31 | . . . . 31 31 . Total Orders . | . . . . . . . Ally Attacks 58 | . . . . 11 47 . Total Damage 784 | . . . . 148 636 . Kills 5 | . . . . 2 3 . Allies Corrupted . | . . . . . . . Allies Melted . | . . . . . . . Intel | -11 -10 -10 -10 -9 -8 -7 ------- Run | Scr Mat Min Exi Min Mat Fac Robot Analysis Total . | . . . . . . . Derelict Logs Recovered 4 | . . 2 . 2 . . Drone Launches . | . . . . . . . Drone Recoveries . | . . . . . . . Exploration | -11 -10 -10 -10 -9 -8 -7 ------------- Run | Scr Mat Min Exi Min Mat Fac Turns Passed 5072 | 84 424 781 875 963 836 1109 Spaces Moved 2869 | 55 255 537 512 584 498 428 Core 26 | 16 . . . . . 10 Treads 21 | . . . . . . 21 Legs 2667 | 39 255 537 512 584 498 242 Wheels . | . . . . . . . Hover 155 | . . . . . . 155 Flight . | . . . . . . . Fastest Speed 50 | 50 120 120 120 120 120 120 Average Speed 142 | 99 120 126 167 149 120 167 Slowest Speed 400 | 120 120 150 180 150 150 400 Overloaded Moves . | . . . . . . . Propulsion Burnouts . | . . . . . . . Robots Hopped . | . . . . . . . Cave-ins Triggered . | . . . . . . . Exploration Rate (%) 51 | 4 50 78 87 85 43 13 Regions Visited 6 Branch Regions 3 Pre-discovered Areas 2 | . . . . 2 . . Known Exits Taken 1 | . . . . . 1 . Unknown Exits Taken 5 | 1 1 1 1 1 . . Scrap Searched 2 | . . 1 . 1 . . Spaces Dug . | . . . . . . . Terrain Destroyed 52 | . . 49 . . 1 2 Melee . | . . . . . . . Projectile 1 | . . . . . 1 . AOE 51 | . . 49 . . . 2 Terrain Rammed . | . . . . . . . Walls Destroyed . | . . . . . . . Machines Disabled . | . . . . . . . Actions | -11 -10 -10 -10 -9 -8 -7 --------- Run | Scr Mat Min Exi Min Mat Fac Total 3562 | 77 311 600 531 662 663 718 Wait 279 | . 3 13 . 56 30 177 Move 2863 | 54 254 536 511 583 497 428 Hop . | . . . . . . . Pick Up 81 | 9 10 9 10 4 26 13 Fast Attach . | . . . . . . . Attach 46 | 7 1 2 4 2 10 20 Detach 1 | . . . . . . 1 Swap 26 | . 4 5 1 2 13 1 Drop 33 | . 4 6 5 2 16 . Fire 216 | 7 35 29 . 13 71 61 Melee 16 | . . . . . . 16 Ram 1 | . . . . . . 1 Kick . | . . . . . . . Crush . | . . . . . . . Escape Stasis . | . . . . . . . Rewire . | . . . . . . . Trap . | . . . . . . . Miscellaneous . | . . . . . . . Route ------- -11/Scrapyard -10/Materials (discovered 2 exits: [*Mat] / [*Min]) -10/Mines -10/Exiles (discovered 2 exits: [*Min x2]) -9/Mines -8/Materials -7/Factory History --------- Turn | Location | Event 7 | -11/Scrapyard | Discovered new exit (range 16) 85 | -11/Scrapyard | Entered Materials 252 | -10/Materials | Discovered new exit (range 15) 307 | -10/Materials | Build established: Mutant 456 | -10/Materials | Discovered new exit (range 6) 509 | -10/Materials | Entered Mines 679 | -10/Mines | Received a Rocket Launcher from a helpful Derelict 812 | -10/Mines | Core integrity fell below 50% 939 | -10/Mines | Learned Materials terminal intel 1186 | -10/Mines | Joined a pair of Derelicts in attacking an 0b10 outpost 1279 | -10/Mines | Deemed a non-threat by the Exiles lab entrance 1281 | -10/Mines | Discovered new exit (range 5) 1290 | -10/Mines | Entered Exiles 1326 | -10/Exiles | Discovered new exit (range 15) 1349 | -10/Exiles | Met 8R-AWN 1383 | -10/Exiles | Met EX-HEX 1448 | -10/Exiles | Met EX-BIN 1482 | -10/Exiles | Aligned with FarCom system 1484 | -10/Exiles | Given EX-Vault access code 1532 | -10/Exiles | Opened EX-Vault 1544 | -10/Exiles | Found Prototype Device 1546 | -10/Exiles | Identified Supersonic Drone Bay 1554 | -10/Exiles | Found Prototype Device 1555 | -10/Exiles | Identified Skeleton Box 1559 | -10/Exiles | Found Prototype Energy Cannon 1560 | -10/Exiles | Identified Gui. Plasma Cannon 1641 | -10/Exiles | Warned to stay clear of 0b10 Research branches 1704 | -10/Exiles | Met EX-DEC 1781 | -10/Exiles | Visited The Gauntlet 2133 | -10/Exiles | Discovered new exit (range 14) 2165 | -10/Exiles | Left Exiles lab with Gui. Plasma Cannon 2165 | -10/Exiles | Entered Mines 2218 | -9/Mines | Learned location of 1 exit from Materials 2467 | -9/Mines | Build established: Scavenger-Mutant 2538 | -9/Mines | Assisted by bots powering up and referring to "LRC-V3" 2661 | -9/Mines | Learned location of Zion (-6) 2682 | -9/Mines | Learned location of Storage (-7) 3109 | -9/Mines | Discovered new exit (range 7) 3128 | -9/Mines | Entered Materials 3128 | -8/Materials | Accompanied by 5 allies 3128 | -8/Materials | Evolved 4 slots: Power x1, Propulsion x1, Utility x2 3129 | -8/Materials | Identified exit to Factory 3130 | -8/Materials | Loaded intel: 12 terminal locations 3133 | -8/Materials | Led the pair of lost Derelicts to an unsafe place 3817 | -8/Materials | Garrison activated, responded to threat 3964 | -8/Materials | Entered Factory 3964 | -7/Factory | Evolved 2 slots: Utility x2 4172 | -7/Factory | Lost 5 parts (2p2n1w) 4480 | -7/Factory | Build established: Skirmisher 4901 | -7/Factory | Repaired Lgt. Nuclear Core 4912 | -7/Factory | Lost 5 parts (1p1n2u1w) 4989 | -7/Factory | Core integrity fell below 50% 4991 | -7/Factory | System corruption reached 10% 5021 | -7/Factory | Lost 4 parts (1p1n1u1w) 5051 | -7/Factory | Core integrity fell below 20% 5073 | -7/Factory | Destroyed by G-47 Trooper with Particle Gun Last Messages --------------- 05043_ K-01 Serf collects debris. 05043_ System corrupted: Power Maul targeting data glitched. 05043_ L-41 Fighter knocked back. 05045_ K-01 Serf destroyed. 05045_ R-06 Scavenger collects Mace. 05046_ Acquired 19 matter. 05047_ System corrupted: Heat flow error (+235). 05047_ R-06 Scavenger collects Wheel. 05047_ Adv. Treads destroyed. 05048_ ALERT: Rogue bot located, Programmers report to Factory Zone 2W. 05050_ R-06 Scavenger collects Wheel. 05063_ System corrupted: Energy discharge (-29). 05063_ System corrupted: Power Maul targeting data glitched. 05064_ K-01 Serf collects debris. 05067_ Power Maul destroyed. 05067_ Lgt. Treads destroyed. 05067_ System corrupted by crushing effect (+5). 05067_ System corrupted by crushing effect (+2). 05067_ Knocked back. 05070_ Slammed into B-48 Gladiator. Map ----- +----------------------------------------------------+ | ?????????????????????????????????????????????????? | | ?????????????????????????????????????????????????? | | ?????????????????????????????????????????????????? | | ?????????????????????????????????????????????????? | | ?????????????????????????????????????????????????? | | ?????????????????????????????????????????????????? | | ?????????????????????????????????????????????????? | | ?????????????????????????????????????????????????? | | ?????????????????????????????????????????????????? | | ?????????????????????????????????????????????????? | | ?????????????????????????????????????????????????? | | ?????????????????????????????????????????????????? | | ?????????????????????????????????????????????????? | | ?????????????????????????????????????????????????? | | ?????????????????????????????????????????????????? | | ?????????????????????????????????????????????????? | | ?????????????????????????????????????????????????? | | ??????????????############??##########???????????? | | ????????????? #??# #???????????? | | ???????????""""""""" #??# #???????????? | | ??????????? #??# #???????????? | | ??????????!= = #??# ! #???????????? | | ??????????!= ! #??# #???????????? | | ?????????!!= ! #??# #???????????? | | ???????????? #### ] #???????????? | | ????????????????"""" @b + #???????????? | | ???????????? #g # #???##+#????? | | ???????????######+########l #####/####??? ????? | | ???????? "% g r g ????? | | ???????? " ? !????? | | ???????? """ ? ????? | | ??????????###### """ #################? ????? | | ???????????????# ""%% #?????????????????# #????? | | ???????????????# %"%% #?????????????????# #????? | | ???????????????+ #?????????????????# ###### | | ???????????????# #????############## | | ???????????????## #????# """ # | | ????????????????# #????# g"R" + | | ????????????????# #????# " " " "*" # | | ????????????????# #????# " " " g % # | | ????????????????# % #????# " " " # | | ????????????????# !#????# " " " ! # | | ????????????????# #????# " " " # | | ????????????????# s%###### " " " # | | ????????????????# ss + " " " # | | ????????????????############## " " " # | | ?????????????????????????????# " " " # | | ?????????????????????????????# # | | ?????????????????????????????##########+### | | ?????????????????????????????????????? """ | +----------------------------------------------------+ Best States ------------- Heat Dissipation 53 Energy Generation 31 Energy Capacity 400 Matter Stores 300 Matter Capacity 300 Sight Range 16 Robot Scan Range 13 Terrain Scan Density 60 ECM Strength 2 Evasion (%) 50 Targeting Accuracy 5 Recoil Reduction 1 Item Schematics ----------------- None Robot Schematics ------------------ M-28 Smith | -7/Factory | Hacked Fabricated ------------ Nothing Alien Tech Used ----------------- None Achievements -------------- None Challenges ------------ None Game ------ Seed LightArchitectPurifier Manual? 0 Play Time 01:03:17 Cumulative 95.0 hours Start 2020.10.14 @ 18:48:18 End 2020.10.14 @ 20:17:46 Sessions 1 Manual Loads 0 Difficulty Rogue Special Mode None Game No. 74 Rogue 74 Adventurer 0 Explorer 0 Win Type - Total 0 Types 0/0/0/0/0/0/0/0/0 Lore% 34 Gallery% 37 Achievement% 28 Wizard Run 0 Options --------- ASCII 0 Keyboard 0 Movement Arrows Keybinds 0 Fullscreen 0 Font 16/SmallcapsGlow Map View 76x50 Tactical HUD 1 Map Filters NONE Filters NONE Steam 1 RUN: 62c05d66-ebb9-4211-b1df-a53984dfd6ae